bitfinex-derivatives/quotes_SOLF0:USTF0_20241008
["timestamp","ask_amount","ask_price","bid_price","bid_amount"]
[1728395123058,3.4697,144.16,144.13,3.4701]
[1728395123253,33.69,144.17,144.13,3.4701]
[1728395123754,26.63,144.15,144.11,0.12502]
[1728395123956,26.63,144.12,144.11,0.12502]
[1728395124159,30.1005,144.12,144.11,0.12502]
[1728395124760,26.63,144.12,144.05,1.57282]
[1728395124955,26.63,144.12,144.06,10.8884171]
[1728395125157,26.63,144.12,144.05,1.57282]
[1728395125353,30.1006,144.12,144.05,1.57282]
[1728395125547,30.1006,144.12,144.09,3.4711]
[1728395126159,26.63,144.12,144.1,3.471]
[1728395126349,26.63,144.12,144.05,1.57282]
[1728395126754,26.63,144.12,144.06,10.88014423]
[1728395127057,30.1005,144.12,144.05,1.57282]
[1728395127252,26.63,144.12,144.06,3.4719]
[1728395127457,26.63,144.12,144.05,1.57282]
[1728395127458,3.4714,144.09,144.05,1.57282]
[1728395127651,26.63,144.12,144.05,1.57282]
[1728395127849,3.4711,144.1,144.07,3.4716]
[1728395128152,26.63,144.12,144.05,1.57282]
[1728395128349,26.63,144.12,144.08,3.4713]
[1728395128553,26.63,144.12,144.05,1.57282]
[1728395128963,3.4711,144.1,144.07,3.4717]
[1728395129355,26.63,144.12,144.05,1.57282]
[1728395129556,30.1006,144.12,144.05,1.57282]
[1728395129758,26.63,144.12,144.05,1.57282]
[1728395129968,26.63,144.12,144.07,3.4717]
[1728395130157,30.1007,144.12,144.05,1.57282]
[1728395130354,26.63,144.12,144.05,1.57282]
[1728395130756,3.4713,144.09,144.05,0.12502]
[1728395131062,31.42909703,144.12,144.07,3.4717]
[1728395131261,31.42909703,144.12,144.05,0.12502]
[1728395131461,26.63,144.1,144.05,0.12502]
[1728395131663,6.06,144.09,144.05,3.59722]
[1728395131854,3.4716,144.08,144.05,3.59722]
[1728395132656,3.4705,144.12,144.09,3.4711]
[1728395132861,26.63,144.15,144.09,3.4711]
[1728395133060,26.63,144.13,144.05,0.12502]
[1728395133261,26.63,144.11,144.05,0.12502]
[1728395133462,3.38964711,144.1,144.05,0.12502]
[1728395133661,3.4714,144.09,144.06,3.4718]
[1728395133859,1.3324,144.12,144.05,0.12502]
[1728395134066,6.06,144.11,144.05,0.12502]
[1728395134262,9.5309,144.11,144.08,3.4714]
[1728395134963,6.06,144.11,144.05,0.12502]
[1728395135168,1.0,144.14,144.05,6.18502]
[1728395135361,7.3924,144.16,144.06,30.7563]
[1728395135561,3.4698,144.15,144.12,3.4704]
[1728395135866,7.3924,144.16,144.06,30.7563]
[1728395136763,3.4701,144.14,144.11,3.4707]
[1728395136969,26.63,144.15,144.06,4.1263]
[1728395137271,3.4706,144.12,144.08,3.4714]
[1728395137466,26.63,144.13,144.06,4.1263]
[1728395137773,26.63,144.15,144.06,4.1263]
[1728395137965,7.3924,144.16,144.06,4.1263]
[1728395138169,6.06,144.16,144.06,4.1263]
[1728395138365,9.5296,144.16,144.13,3.47]
[1728395139166,6.06,144.16,144.06,30.7563]
[1728395139872,0.12502,144.17,144.06,30.7563]
[1728395140067,0.12502,144.17,144.09,26.63]
[1728395140369,0.12502,144.17,144.16,3.4695]
[1728395140569,0.12502,144.17,144.1,6.02]
[1728395140966,0.12502,144.17,144.15,3.4696]
[1728395142167,3.59452,144.17,144.12,3.4705]
[1728395142374,0.12502,144.17,144.1,6.02]
[1728395142777,0.12502,144.17,144.16,3.4695]
[1728395145974,0.12502,144.17,144.12,4.0577]
[1728395146181,0.12502,144.17,144.16,3.4695]
[1728395148784,0.12502,144.23,144.2,3.4683]
[1728395148978,0.12502,144.23,144.14,6.02]
[1728395149590,26.75502,144.23,144.14,6.02]
[1728395149777,26.75502,144.23,144.12,4.0577]
[1728395149976,30.0988,144.2,144.17,3.4693]
[1728395150277,26.63,144.2,144.12,4.0577]
[1728395150481,3.469,144.19,144.16,3.4694]
[1728395150883,26.63,144.2,144.12,4.0577]
[1728395151180,30.0991,144.18,144.14,3.4698]
[1728395151375,30.0991,144.18,144.12,4.0577]
[1728395151980,26.63,144.18,144.15,3.4696]
[1728395152181,29.4484,144.2,144.12,4.0577]
[1728395152481,32.77502,144.23,144.12,4.0577]
[1728395152782,3.4685,144.21,144.18,3.4689]
[1728395153173,32.77502,144.23,144.12,4.0577]
[1728395153378,3.4682,144.22,144.12,4.0577]
[1728395153881,36.24292,144.23,144.2,3.4685]
[1728395154779,36.24292,144.23,144.15,6.02]
[1728395154986,36.24292,144.23,144.19,3.4687]
[1728395155180,3.4681,144.22,144.19,3.4687]
[1728395155378,32.77502,144.23,144.21,3.4683]
[1728395155781,26.75502,144.23,144.21,3.4683]
[1728395156387,0.12502,144.23,144.21,3.4683]
[1728395156585,3.59292,144.23,144.21,3.4683]
[1728395157385,0.12502,144.23,144.15,6.02]
[1728395157579,0.12502,144.23,144.16,10.87520711]
[1728395157890,6.02,144.28,144.18,26.63]
[1728395158079,0.12502,144.29,144.19,19.59216721]
[1728395158292,0.12502,144.29,144.2,5.77884147]
[1728395158479,3.59152,144.29,144.25,3.4672]
[1728395158677,3.59152,144.29,144.19,8.7193]
[1728395158678,0.12502,144.29,144.19,8.7193]
[1728395158888,0.12502,144.29,144.2,10.86421008]
[1728395159080,0.12502,144.29,144.26,3.4669]
[1728395159282,0.12502,144.29,144.19,8.7193]
[1728395159489,26.63,144.28,144.2,10.86168687]
[1728395159785,26.63,144.28,144.2,6.02]
[1728395160083,3.4675,144.25,144.21,3.4682]
[1728395160288,3.4675,144.25,144.19,2.6993]
[1728395160289,26.63,144.25,144.19,2.6993]
[1728395160478,26.63,144.25,144.19,1.3835]
[1728395160890,3.4678,144.24,144.21,3.4682]
[1728395161097,26.63,144.25,144.19,1.3835]
[1728395161387,6.14502,144.29,144.19,1.3835]
[1728395161590,6.14502,144.29,144.2,5.77323186]
[1728395161785,0.12502,144.29,144.19,1.3835]
[1728395162087,0.12502,144.29,144.2,37.48553787]
[1728395162292,0.12502,144.29,144.21,10.85553787]
[1728395162586,0.12502,144.29,144.22,6.02]
[1728395162888,3.59152,144.29,144.22,6.02]
[1728395163091,0.12502,144.29,144.22,7.3515]
[1728395164283,3.4667,144.28,144.25,3.4672]
[1728395164586,0.12502,144.29,144.22,1.3315]
[1728395165187,0.12502,144.29,144.27,3.4668]
[1728395165989,3.59142,144.29,144.26,3.467]
[1728395166585,0.12502,144.29,144.22,1.3315]
[1728395167193,0.12502,144.29,144.27,3.4668]
[1728395167491,0.12502,144.29,144.22,1.3315]
[1728395167889,3.4668,144.28,144.25,3.4672]
[1728395168088,0.12502,144.29,144.22,1.3315]
[1728395168885,0.12502,144.29,144.24,3.4676]
[1728395169400,3.4673,144.26,144.22,3.4679]
[1728395169692,32.53,144.27,144.19,1.3835]
[1728395169886,5.9,144.27,144.25,3.4673]
[1728395170086,5.9,144.27,144.19,1.3835]
[1728395170481,3.4671,144.26,144.23,3.4678]
[1728395170691,5.9,144.27,144.19,1.3835]
[1728395170692,32.53,144.27,144.19,1.3835]
[1728395171192,32.53,144.27,144.23,3.4677]
[1728395171390,5.9,144.27,144.19,1.3835]
[1728395171893,0.12502,144.29,144.21,26.63]
[1728395172092,0.12502,144.29,144.22,7.2702]
[1728395172796,0.12502,144.29,144.27,3.4667]
[1728395172992,0.12502,144.29,144.22,7.2702]
[1728395173295,0.12502,144.29,144.28,3.4666]
[1728395173686,0.12502,144.29,144.19,1.3835]
[1728395173687,26.75502,144.29,144.19,1.3835]
[1728395173989,26.75502,144.29,144.25,3.4673]
[1728395174303,3.4669,144.27,144.2,5.9]
[1728395174589,26.75502,144.29,144.23,3.4677]
[1728395174989,26.75502,144.29,144.24,3.4676]
[1728395175200,26.75502,144.29,144.19,8.6537]
[1728395175407,3.4673,144.26,144.19,8.6537]
[1728395175699,26.75502,144.29,144.19,8.6537]
[1728395175893,3.4673,144.26,144.19,8.6537]
[1728395176084,3.4673,144.26,144.23,3.4677]
[1728395176290,5.9,144.27,144.19,8.6537]
[1728395176893,5.9,144.27,144.26,3.4671]
[1728395177195,5.9,144.27,144.19,8.6537]
[1728395177400,5.9,144.27,144.22,3.4681]
[1728395177606,5.9,144.27,144.19,8.6537]
[1728395177893,32.53,144.27,144.19,1.3835]
[1728395178092,32.53,144.27,144.21,3.4682]
[1728395178093,3.4677,144.24,144.21,3.4682]
[1728395178302,1.3511,144.26,144.17,0.12502]
[1728395178705,26.63,144.25,144.17,0.12502]
[1728395179395,26.63,144.25,144.19,3.4687]
[1728395179396,3.4681,144.22,144.19,3.4687]
[1728395179712,26.63,144.25,144.17,0.12502]
[1728395179998,5.9,144.24,144.21,3.4682]
[1728395180196,5.9,144.24,144.17,0.12502]
[1728395180399,9.3676,144.24,144.19,3.4688]
[1728395180591,5.9,144.24,144.17,0.12502]
[1728395181105,3.4682,144.22,144.17,0.12502]
[1728395181597,5.9,144.24,144.17,0.12502]
[1728395181798,26.63,144.23,144.17,0.12502]
[1728395181998,26.63,144.23,144.17,3.59412]
[1728395182204,3.4686,144.21,144.17,3.59412]
[1728395182591,26.63,144.23,144.17,3.59412]
[1728395182799,3.4683,144.22,144.17,3.59412]
[1728395183006,26.63,144.23,144.17,3.59412]
[1728395183407,3.4686,144.2,144.17,3.59412]
[1728395183703,3.4686,144.2,144.18,3.469]
[1728395183905,3.4687,144.2,144.17,0.12502]
[1728395184110,26.63,144.23,144.17,0.12502]
[1728395184412,3.4689,144.19,144.17,0.12502]
[1728395184607,5.9,144.2,144.17,0.12502]
[1728395185307,5.9,144.2,144.19,3.4688]
[1728395186016,5.9,144.2,144.17,3.59422]
[1728395186213,5.9,144.2,144.17,0.12502]
[1728395186714,5.9,144.2,144.17,3.59422]
[1728395186916,9.3687,144.2,144.17,0.12502]
[1728395187208,5.9,144.2,144.17,0.12502]
[1728395187513,9.3686,144.2,144.18,3.4689]
[1728395187707,26.63,144.25,144.17,0.12502]
[1728395187916,5.9,144.25,144.22,3.468]
[1728395188307,3.4676,144.24,144.22,3.468]
[1728395188611,5.9,144.25,144.17,0.12502]
[1728395188612,5.9,144.25,144.17,26.75502]
[1728395189118,5.9,144.25,144.18,2.8162]
[1728395189315,3.4678,144.24,144.18,2.8162]
[1728395190314,5.9,144.25,144.17,0.12502]
[1728395190315,3.4684,144.21,144.17,0.12502]
[1728395190703,3.4684,144.21,144.18,3.4689]
[1728395191022,32.53,144.25,144.17,0.12502]
[1728395191412,32.53,144.25,144.19,3.4687]
[1728395191714,3.39468011,144.24,144.17,0.12502]
[1728395191901,3.4681,144.22,144.18,3.4689]
[1728395192107,3.39468011,144.24,144.17,0.12502]
[1728395192814,32.53,144.25,144.17,0.12502]
[1728395193012,5.9,144.24,144.17,0.12502]
[1728395193806,1.3511,144.26,144.17,0.12502]
[1728395194008,0.12502,144.29,144.19,26.63]
[1728395194216,6.02502,144.29,144.27,3.4668]
[1728395194415,6.02502,144.29,144.22,5.9]
[1728395195321,6.02502,144.29,144.26,3.467]
[1728395195817,6.02502,144.29,144.27,3.4668]
[1728395196817,0.12502,144.29,144.28,3.4666]
[1728395199514,26.75502,144.35,144.32,3.4656]
[1728395199515,0.12502,144.35,144.32,3.4656]
[1728395200027,0.12502,144.35,144.27,1.3975]
[1728395200217,0.12502,144.35,144.31,3.4658]
[1728395200418,26.75502,144.35,144.27,1.3975]
[1728395201225,3.4653,144.34,144.3,3.466]
[1728395201622,26.75502,144.35,144.27,1.3975]
[1728395201926,3.4656,144.33,144.27,1.3975]
[1728395202817,3.4656,144.33,144.28,3.4665]
[1728395203121,26.63,144.33,144.25,5.84]
[1728395203619,26.63,144.33,144.28,3.4665]
[1728395204128,3.4663,144.3,144.26,3.4669]
[1728395204517,5.84,144.32,144.26,3.4669]
[1728395204718,26.63,144.31,144.24,3.4675]
[1728395205022,26.63,144.28,144.23,0.12502]
[1728395205220,5.84,144.27,144.23,0.12502]
[1728395205927,5.84,144.27,144.25,3.4672]
[1728395206125,5.84,144.27,144.23,0.12502]
[1728395206531,5.84,144.27,144.26,3.4671]
[1728395206922,5.84,144.27,144.23,0.12502]
[1728395207623,5.84,144.27,144.24,3.4676]
[1728395207828,5.84,144.27,144.23,0.12502]
[1728395208131,3.4673,144.26,144.23,3.59262]
[1728395208329,5.84,144.27,144.23,3.59262]
[1728395208732,9.3071,144.27,144.23,0.12502]
[1728395208927,9.3071,144.27,144.24,3.4676]
[1728395210116,9.3071,144.27,144.23,3.59282]
[1728395210117,3.4672,144.26,144.23,3.59282]
[1728395210321,5.84,144.27,144.23,3.59282]
[1728395210721,5.84,144.27,144.25,3.4672]
[1728395210922,4.2239,144.3,144.23,0.12502]
[1728395211128,5.84,144.29,144.23,0.12502]
[1728395211333,3.4668,144.28,144.25,3.4672]
[1728395211522,5.84,144.29,144.23,0.12502]
[1728395212036,9.3065,144.29,144.26,3.4671]
[1728395212237,9.3065,144.29,144.23,0.12502]
[1728395212238,5.84,144.29,144.23,0.12502]
[1728395212533,26.63,144.28,144.23,0.12502]
[1728395212732,3.4674,144.25,144.23,0.12502]
[1728395212924,26.63,144.28,144.23,0.12502]
[1728395213323,3.4673,144.26,144.23,3.59282]
[1728395213932,3.4674,144.25,144.23,3.59282]
[1728395214135,3.4674,144.25,144.23,0.12502]
[1728395214331,26.63,144.28,144.23,0.12502]
[1728395214634,3.4672,144.26,144.23,0.12502]
[1728395214832,3.4672,144.26,144.23,3.59282]
[1728395216731,26.63,144.28,144.23,3.59282]
[1728395216926,3.4673,144.26,144.23,3.59282]
[1728395218131,3.4673,144.26,144.23,0.12502]
[1728395218328,3.4673,144.26,144.24,3.4676]
[1728395218531,9.29510901,144.29,144.23,0.12502]
[1728395218532,3.4674,144.25,144.23,0.12502]
[1728395218731,3.4674,144.25,144.23,3.59282]
[1728395218928,16.64,144.29,144.23,0.12502]
[1728395219130,5.84,144.29,144.23,0.12502]
[1728395219525,22.48,144.29,144.23,0.12502]
[1728395219927,16.64,144.29,144.26,3.467]
[1728395220133,22.48,144.29,144.23,0.12502]
[1728395220638,22.48,144.29,144.27,3.4667]
[1728395220840,22.48,144.29,144.23,0.12502]
[1728395221135,16.64,144.27,144.23,0.12502]
[1728395222034,16.64,144.29,144.25,3.4672]
[1728395222236,16.64,144.27,144.23,0.12502]
[1728395222438,3.4672,144.26,144.23,0.12502]
[1728395223340,3.4672,144.26,144.23,3.59272]
[1728395223539,3.4676,144.24,144.23,0.12502]
[1728395223741,20.1076,144.24,144.23,0.12502]
[1728395224953,16.64,144.25,144.23,0.12502]
[1728395225145,25.9475,144.25,144.23,0.12502]
[1728395226065,3.4676,144.24,144.23,0.12502]
[1728395226256,20.1076,144.24,144.23,0.12502]
[1728395226662,3.4681,144.22,144.19,3.4688]
[1728395226956,16.64,144.24,144.19,3.4688]
[1728395227259,5.84,144.25,144.17,0.12502]
[1728395227260,16.64,144.2,144.17,0.12502]
[1728395227462,16.64,144.18,144.17,0.12502]
[1728395228357,20.1091,144.18,144.17,0.12502]
[1728395228755,3.4691,144.18,144.17,0.12502]
[1728395229760,22.48,144.2,144.17,0.12502]
[1728395229959,3.4689,144.19,144.17,3.59432]
[1728395231063,3.7612,144.23,144.17,0.12502]
[1728395231064,20.4012,144.23,144.17,0.12502]
[1728395231271,5.8,144.22,144.17,0.12502]
[1728395231663,16.64,144.25,144.17,0.12502]
[1728395231861,5.8,144.24,144.17,0.12502]
[1728395232064,5.8,144.24,144.22,3.4679]
[1728395232955,5.8,144.24,144.21,3.4682]
[1728395233155,5.8,144.24,144.17,5.92502]
[1728395233365,16.64,144.23,144.17,5.92502]
[1728395233563,3.4682,144.22,144.19,3.4687]
[1728395233865,16.64,144.23,144.17,5.92502]
[1728395234067,16.64,144.23,144.18,5.10786281]
[1728395234265,16.64,144.23,144.17,5.92502]
[1728395234464,16.64,144.23,144.18,5.10860481]
[1728395234659,3.4684,144.21,144.18,3.4689]
[1728395234965,16.64,144.23,144.17,0.12502]
[1728395235157,3.4682,144.22,144.19,3.4687]
[1728395235963,16.64,144.23,144.17,0.12502]
[1728395236360,3.4684,144.21,144.18,3.469]
[1728395236557,3.4684,144.21,144.17,0.12502]
[1728395236558,16.64,144.21,144.17,0.12502]
[1728395236955,3.46900596,144.22,144.17,0.12502]
[1728395236956,16.64,144.19,144.17,0.12502]
[1728395237361,5.8,144.2,144.17,0.12502]
[1728395237362,16.64,144.18,144.17,0.12502]
[1728395237761,22.44,144.2,144.17,0.12502]
[1728395237970,5.8,144.2,144.17,0.12502]
[1728395238160,9.2686,144.2,144.17,3.59422]
[1728395238356,5.8,144.2,144.17,0.12502]
[1728395238757,5.8,144.23,144.17,0.12502]
[1728395238955,16.64,144.24,144.17,0.12502]
[1728395239167,5.8,144.24,144.17,0.12502]
[1728395239363,9.2676,144.24,144.21,3.4682]
[1728395239569,5.8,144.24,144.17,0.12502]
[1728395239770,3.4679,144.23,144.17,0.12502]
[1728395239958,22.44,144.24,144.17,0.12502]
[1728395240265,16.64,144.22,144.17,0.12502]
[1728395240562,5.8,144.24,144.17,0.12502]
[1728395240563,26.65,144.23,144.17,0.12502]
[1728395241069,3.4687,144.2,144.17,3.59422]
[1728395241274,26.65,144.23,144.17,0.12502]
[1728395241564,5.8,144.23,144.17,0.12502]
[1728395242165,9.268,144.23,144.2,3.4684]
[1728395242675,26.65,144.25,144.17,0.12502]
[1728395242972,9.906,144.26,144.18,10.91009253]
[1728395243168,7.1162,144.26,144.19,10.91009253]
[1728395243472,7.1162,144.26,144.18,2.6463]
[1728395243767,7.1162,144.26,144.19,10.91060709]
[1728395243959,7.1162,144.26,144.18,2.6463]
[1728395244271,5.8,144.28,144.19,10.91208085]
[1728395244469,26.65,144.27,144.2,10.91208085]
[1728395244666,3.4673,144.26,144.23,3.4677]
[1728395245069,30.117,144.27,144.24,3.4676]
[1728395245266,5.8,144.28,144.18,2.6463]
[1728395245567,5.92502,144.29,144.19,37.56071718]
[1728395245865,5.92502,144.29,144.2,10.91071718]
[1728395246068,5.92502,144.29,144.21,10.91071718]
[1728395246270,5.92502,144.29,144.2,5.8]
[1728395246569,5.92502,144.29,144.21,10.90777642]
[1728395246768,3.467,144.27,144.24,3.4675]
[1728395247072,5.92502,144.29,144.2,5.8]
[1728395247371,3.4667,144.28,144.21,10.90568063]
[1728395247560,3.4667,144.28,144.22,10.90568063]
[1728395247760,5.92502,144.29,144.2,5.8]
[1728395247961,26.65,144.27,144.21,5.80018325]
[1728395248277,26.65,144.27,144.18,8.4463]
[1728395248574,26.65,144.25,144.17,0.12502]
[1728395248763,5.8,144.24,144.17,0.12502]
[1728395249267,3.4682,144.22,144.19,3.4687]
[1728395249870,3.4685,144.21,144.18,3.4688]
[1728395250174,26.65,144.22,144.17,0.12502]
[1728395250373,3.469,144.19,144.17,0.12502]
[1728395250573,32.45,144.2,144.17,0.12502]
[1728395251574,3.469,144.19,144.17,0.12502]
[1728395251779,32.45,144.2,144.17,0.12502]
[1728395251964,411.88,144.27,144.17,0.12502]
[1728395251965,74.88,144.27,144.17,0.12502]
[1728395252166,4.116,144.28,144.18,10.91775414]
[1728395252373,0.12502,144.29,144.19,37.56775414]
[1728395252679,0.12502,144.29,144.2,10.91775414]
[1728395252877,0.12502,144.29,144.21,16.71775414]
[1728395253082,0.12502,144.29,144.22,10.91775414]
[1728395253278,0.12502,144.29,144.23,10.91775414]
[1728395253472,0.12502,144.29,144.26,3.467]
[1728395258381,0.12502,144.29,144.28,3.4666]
[1728395258677,0.12502,144.29,144.23,26.65]
[1728395258877,0.12502,144.29,144.24,10.89968743]
[1728395259078,0.12502,144.29,144.21,32.45]
[1728395259280,0.12502,144.29,144.22,10.8992925]
[1728395259481,0.12502,144.29,144.23,10.8992925]
[1728395259677,0.12502,144.29,144.19,33.8903]
[1728395259879,0.12502,144.29,144.28,3.4666]
[1728395260779,0.12502,144.29,144.28,9.25769016]
[1728395260980,5.82,144.37,144.28,10.89011092]
[1728395261175,5.82,144.37,144.27,26.65]
[1728395261176,5.82,144.37,144.29,10.88696605]
[1728395261389,3.4647,144.37,144.27,26.65]
[1728395261686,5.82,144.36,144.28,10.88487842]
[1728395261886,5.82,144.36,144.32,3.4655]
[1728395262986,5.82,144.36,144.33,3.4654]
[1728395264482,9.2849,144.36,144.27,26.65]
[1728395264987,9.2849,144.36,144.31,3.4657]
[1728395265188,9.2849,144.36,144.27,26.65]
[1728395265388,9.2849,144.36,144.28,5.7837749]
[1728395265588,9.2849,144.36,144.32,3.4655]
[1728395265787,5.94502,144.35,144.32,3.4655]
[1728395266500,32.59502,144.35,144.26,1.3867]
[1728395266678,32.59502,144.35,144.23,5.94502]
[1728395266977,32.59502,144.35,144.23,0.12502]
[1728395266978,26.65,144.32,144.23,0.12502]
[1728395267177,9.9597,144.31,144.23,0.12502]
[1728395267490,26.65,144.3,144.23,0.12502]
[1728395267690,26.65,144.3,144.23,3.59282]
[1728395267691,3.53982695,144.29,144.23,3.59282]
[1728395267989,3.53982695,144.29,144.23,0.12502]
[1728395268188,26.65,144.28,144.23,0.12502]
[1728395268379,5.82,144.27,144.23,0.12502]
[1728395268578,9.26106526,144.27,144.23,0.12502]
[1728395269287,5.82,144.26,144.23,0.12502]
[1728395270281,1.0,144.31,144.27,22.0]
[1728395270592,0.12502,144.41,144.28,26.65]
[1728395270789,0.12502,144.41,144.34,3.4652]
[1728395270790,3.58862,144.41,144.34,3.4652]
[1728395271089,6.3,144.39,144.34,3.4652]
[1728395271286,0.12502,144.41,144.34,3.4652]
[1728395271486,6.42502,144.41,144.34,3.4652]
[1728395273090,33.07502,144.41,144.34,3.4652]
[1728395273297,6.3,144.37,144.34,3.4652]
[1728395273789,6.3,144.37,144.29,6.3]
[1728395274199,6.3,144.37,144.29,32.95]
[1728395274388,6.3,144.37,144.33,3.4653]
[1728395274588,6.3,144.37,144.26,32.95]
[1728395274589,9.74517556,144.37,144.26,32.95]
[1728395274794,2.8218,144.36,144.27,10.86824376]
[1728395274995,2.8218,144.36,144.3,3.466]
[1728395274996,3.4652,144.34,144.3,3.466]
[1728395275289,3.4652,144.34,144.26,32.95]
[1728395275290,6.3,144.33,144.26,26.65]
[1728395275491,9.7655,144.33,144.29,3.4664]
[1728395275985,9.7655,144.33,144.24,26.65]
[1728395275986,6.3,144.33,144.24,26.65]
[1728395276192,3.4659,144.32,144.27,3.4667]
[1728395276497,6.3,144.33,144.24,26.65]
[1728395276805,3.4661,144.31,144.26,3.467]
[1728395277092,6.3,144.33,144.24,26.65]
[1728395277593,6.3,144.33,144.23,0.12502]
[1728395277792,3.4667,144.28,144.23,0.12502]
[1728395277985,6.3,144.28,144.23,0.12502]
[1728395278788,6.3,144.28,144.24,3.4674]
[1728395278986,6.3,144.28,144.23,0.12502]
[1728395279291,3.4661,144.31,144.26,3.467]
[1728395279483,4.829,144.31,144.26,3.467]
[1728395279686,6.3,144.3,144.26,3.467]
[1728395279888,3.4664,144.29,144.25,3.4674]
[1728395280088,6.3,144.3,144.25,3.4674]
[1728395280499,9.7663,144.3,144.26,3.4671]
[1728395281096,6.3,144.3,144.23,0.12502]
[1728395281605,3.4667,144.28,144.24,3.4676]
[1728395282691,3.4667,144.28,144.23,3.59262]
[1728395282894,6.3,144.3,144.23,0.12502]
[1728395283504,3.4667,144.28,144.24,3.4676]
[1728395283898,1.3629,144.31,144.23,0.12502]
[1728395284203,6.3,144.3,144.23,0.12502]
[1728395284593,3.4664,144.29,144.25,3.4673]
[1728395284806,6.3,144.3,144.23,0.12502]
[1728395285197,6.3,144.3,144.27,3.4667]
[1728395285901,1.3629,144.31,144.23,0.12502]
[1728395286103,1.3629,144.31,144.24,37.52504913]
[1728395286104,6.3,144.31,144.24,37.52504913]
[1728395286294,6.3,144.31,144.24,28.0072]
[1728395286496,7.3,144.32,144.29,3.4664]
[1728395286898,7.3,144.32,144.24,28.0072]
[1728395287104,1.0,144.32,144.24,28.0072]
[1728395287297,1.0,144.32,144.24,30.1719]
[1728395287498,1.0,144.32,144.3,3.466]
[1728395287692,6.3,144.33,144.24,30.1719]
[1728395287693,6.3,144.33,144.26,32.95]
[1728395287899,6.3,144.36,144.26,32.95]
[1728395288305,6.3,144.36,144.26,6.3]
[1728395288706,6.3,144.36,144.29,3.4662]
[1728395289303,3.4656,144.33,144.29,3.4662]
[1728395289510,3.4656,144.33,144.3,3.4661]
[1728395289806,6.3,144.36,144.3,3.4661]
[1728395290007,3.4654,144.34,144.26,6.3]
[1728395290911,3.59012,144.35,144.26,6.3]
[1728395291105,0.12502,144.35,144.26,6.3]
[1728395291304,0.12502,144.35,144.33,3.4654]
[1728395291609,0.12502,144.35,144.26,32.95]
[1728395292499,0.12502,144.35,144.27,5.77184121]
[1728395292699,0.12502,144.35,144.33,3.4653]
[1728395294401,3.59002,144.35,144.32,3.4657]
[1728395294706,0.12502,144.35,144.26,6.3]
[1728395294903,26.65,144.34,144.24,3.5219]
[1728395295210,3.4658,144.32,144.28,3.4665]
[1728395295509,6.3,144.32,144.28,3.4665]
[1728395296408,3.466,144.31,144.28,3.4665]
[1728395297008,6.3,144.32,144.24,1.3572]
[1728395297708,6.3,144.32,144.3,3.466]
[1728395297905,6.3,144.32,144.24,1.3572]
[1728395299406,3.4664,144.29,144.26,3.467]
[1728395300309,3.4663,144.3,144.27,3.4668]
[1728395300506,32.95,144.32,144.24,1.3572]
[1728395300808,26.65,144.29,144.23,0.12502]
[1728395301111,26.65,144.27,144.23,0.12502]